bitfinex/quotes_SOLUSD_20240729
["timestamp","ask_amount","ask_price","bid_price","bid_amount"]
[1722219396103,4.231,189.08,188.99,45.0]
[1722219396284,4.2313,189.07,188.95,0.17]
[1722219396489,4.2315,189.06,188.93,25.28810039]
[1722219396797,20.5,189.07,188.94,45.34]
[1722219396999,20.0,189.07,188.94,45.34]
[1722219397503,24.2312,189.07,188.94,45.34]
[1722219397683,20.0,189.09,188.95,1.05808617]
[1722219398001,24.2308,189.09,188.96,1.22801367]
[1722219398383,4.2305,189.1,188.96,25.45801367]
[1722219398571,4.2308,189.09,188.97,45.0]
[1722219398977,4.231,189.08,188.97,45.0]
[1722219399207,0.5,189.07,188.97,45.0]
[1722219399404,20.0,189.09,188.97,45.0]
[1722219399581,4.231,189.08,188.97,45.0]
[1722219399781,4.2308,189.09,188.98,1.05800782]
[1722219399996,4.2308,189.09,188.97,45.0]
[1722219400413,9.77122549,189.11,189.0,6.5586]
[1722219400581,5.54092549,189.11,189.01,46.05784591]
[1722219400912,20.0,189.14,189.02,1.39777861]
[1722219401486,20.0,189.16,189.02,1.39777861]
[1722219401797,4.2296,189.15,189.02,1.39777861]
[1722219403104,4.2297,189.14,189.02,1.39777861]
[1722219403277,4.2299,189.13,189.02,1.39777861]
[1722219403480,4.2301,189.12,189.02,1.39777861]
[1722219403712,4.2301,189.12,189.02,0.34]
[1722219404629,4.2301,189.12,189.01,45.0]
[1722219404630,4.2305,189.11,189.01,45.0]
[1722219404986,20.0,189.13,189.01,45.0]
[1722219404987,4.2308,189.09,189.01,45.0]
[1722219405406,4.2305,189.1,189.01,45.0]
[1722219405603,0.5,189.12,189.0,6.5586]
[1722219405801,4.2305,189.1,189.0,6.5586]
[1722219405990,20.0,189.1,189.0,6.5586]
[1722219406304,4.2311,189.08,189.0,6.5586]
[1722219406701,4.2312,189.07,189.0,6.5586]
[1722219407608,0.5,189.09,189.0,6.5586]
[1722219407812,20.0,189.11,188.96,6.1214]
[1722219407813,20.5,189.08,188.96,6.1214]
[1722219408011,20.0,189.08,188.97,1.05801204]
[1722219408197,46.7826,189.12,188.97,25.28801204]
[1722219408198,24.2303,189.11,188.97,25.28801204]
[1722219408520,4.2305,189.1,188.97,25.28801204]
[1722219409492,40.0,189.15,189.0,24.23]
[1722219409692,4.2296,189.15,189.01,46.39765226]
[1722219409988,4.2298,189.14,189.02,1.05757438]
[1722219410190,4.2299,189.13,189.02,1.05757438]
[1722219410409,24.2296,189.15,189.02,1.05757438]
[1722219410610,24.2296,189.15,189.03,0.17]
[1722219410611,4.2296,189.15,189.03,0.17]
[1722219410916,4.2296,189.14,189.05,6.2443]
[1722219411216,4.2296,189.14,189.06,45.0]
[1722219411792,20.0,189.12,189.05,6.2443]
[1722219412098,4.2301,189.12,189.05,6.2443]
[1722219412481,4.2303,189.11,189.05,6.2443]
[1722219412904,4.2301,189.13,189.05,7.30202136]
[1722219413102,61.82632752,189.17,189.06,45.0]
[1722219413103,41.82632752,189.17,189.06,45.0]
[1722219413292,61.82632752,189.17,189.07,1.05764723]
[1722219413620,4.2296,189.14,189.07,1.05764723]
[1722219414615,4.23,189.13,189.06,45.0]
[1722219414808,20.0,189.15,189.06,45.0]
[1722219415197,4.2298,189.13,189.06,45.0]
[1722219415424,56.2868,189.17,189.06,45.0]
[1722219415716,56.2868,189.17,189.05,7.30194805]
[1722219415717,20.0,189.15,189.05,6.2443]
[1722219416086,0.5,189.16,189.05,6.2443]
[1722219416287,4.2293,189.16,189.05,7.30180961]
[1722219416505,4.2294,189.15,189.05,6.2443]
[1722219416990,4.2294,189.15,189.06,45.0]
[1722219418516,0.5,189.16,189.06,45.0]
[1722219418517,4.2296,189.14,189.06,45.0]
[1722219419095,26.05498351,189.17,189.06,45.0]
[1722219419306,4.2292,189.16,189.06,45.0]
[1722219419799,4.2294,189.15,189.06,45.0]
[1722219420002,16.2868,189.17,189.06,45.0]
[1722219420203,20.0,189.18,189.06,45.0]
[1722219420511,0.7768355,189.2,189.08,24.23]
[1722219420723,0.7768355,189.2,189.09,46.05733373]
[1722219420925,5.0052355,189.2,189.09,46.05733373]
[1722219421099,0.7768355,189.2,189.09,46.05733373]
[1722219421925,0.7768355,189.2,189.12,6.0149]
[1722219422128,0.7768355,189.2,189.13,46.05715115]
[1722219422823,0.7768355,189.2,189.13,45.0]
[1722219422999,0.7768355,189.2,189.12,6.0149]
[1722219423322,4.2287,189.18,189.12,6.0149]
[1722219423503,21.2768355,189.2,189.01,1.05731171]
[1722219423504,20.5,189.17,189.07,6.0149]
[1722219423696,40.5,189.17,189.07,6.0149]
[1722219423896,24.729,189.17,189.07,6.0149]
[1722219424100,20.0,189.17,189.07,6.0149]
[1722219424315,40.5,189.17,189.07,6.0149]
[1722219424522,4.2294,189.15,189.07,6.0149]
[1722219424725,20.5,189.15,189.07,6.0149]
[1722219424903,0.5,189.14,189.07,6.0149]
[1722219425104,4.2299,189.13,189.07,6.0149]
[1722219425395,0.5,189.12,189.07,6.0149]
[1722219425611,20.5,189.15,189.07,6.0149]
[1722219425821,4.2299,189.13,189.07,6.0149]
[1722219425994,0.5,189.14,189.07,6.0149]
[1722219426200,20.0,189.17,189.07,6.0149]
[1722219426404,24.2291,189.17,189.07,6.0149]
[1722219426919,4.2292,189.16,189.07,6.0149]
[1722219427300,20.0,189.17,189.07,6.0149]
[1722219427623,4.2287,189.19,189.07,30.2449]
[1722219427831,0.7768355,189.2,189.11,15.9882]
[1722219428005,0.7768355,189.2,189.12,45.0]
[1722219428721,0.7768355,189.2,189.13,25.28719221]
[1722219428907,0.7768355,189.2,189.14,45.0]
[1722219429119,0.7768355,189.2,189.15,6.6382]
[1722219429518,0.7768355,189.2,189.16,46.05714036]
[1722219430019,0.7768355,189.2,189.16,45.0]
[1722219430323,0.7768355,189.2,189.17,1.05705379]
[1722219430500,0.7768355,189.2,189.18,1.05697849]
[1722219431228,35.92,189.31,189.19,34.9262]
[1722219431229,20.0,189.31,189.19,34.9262]
[1722219431399,20.0,189.31,189.2,45.0]
[1722219431598,0.5,189.3,189.2,45.0]
[1722219431805,0.5,189.3,189.19,34.9262]
[1722219431806,4.2269,189.27,189.19,10.6962]
[1722219432029,20.0,189.28,189.19,10.6962]
[1722219432325,0.5,189.28,189.2,45.0]
[1722219432516,20.0,189.3,189.2,45.0]
[1722219433622,25.53484257,189.33,189.21,1.05676741]
[1722219433819,25.53484257,189.33,189.22,24.23]
[1722219434014,25.53484257,189.33,189.23,46.05664003]
[1722219434220,5.53484257,189.33,189.24,1.0566406]
[1722219434425,5.53484257,189.33,189.23,45.0]
[1722219434426,5.53484257,189.33,189.23,46.05657834]
[1722219434609,5.53484257,189.33,189.23,45.0]
[1722219435317,20.0,189.35,189.24,1.05655617]
[1722219435625,36.4097,189.37,189.24,45.0]
[1722219435830,16.9097,189.37,189.25,24.23]
[1722219436217,20.0,189.36,189.26,45.0]
[1722219436412,21.1342,189.37,189.26,45.0]
[1722219436634,20.0,189.38,189.27,6.1212]
[1722219436925,20.0,189.38,189.28,45.0]
[1722219437234,0.7768355,189.39,189.28,69.23]
[1722219437430,0.7768355,189.39,189.29,15.7039]
[1722219437605,0.7768355,189.39,189.3,45.0]
[1722219438025,20.0,189.38,189.29,15.7039]
[1722219438233,20.0,189.38,189.28,24.23]
[1722219438234,20.5,189.38,189.27,6.1212]
[1722219438531,0.7768355,189.39,189.3,45.0]
[1722219438829,0.7768355,189.39,189.28,24.23]
[1722219438830,24.2244,189.38,189.29,45.0]
[1722219439034,0.7768355,189.39,189.29,45.0]
[1722219439233,1.2768355,189.39,189.28,69.23]
[1722219439439,0.7768355,189.39,189.3,24.23]
[1722219439822,0.7768355,189.39,189.31,24.23]
[1722219440126,0.7768355,189.39,189.28,1.05617556]
[1722219440127,0.7768355,189.39,189.28,24.23]
[1722219440306,20.0,189.37,189.27,6.1212]
[1722219440502,20.7768355,189.39,189.27,6.1212]
[1722219440709,20.7768355,189.39,189.27,7.17762054]
[1722219440914,20.7768355,189.39,189.27,6.1212]
[1722219441140,20.7768355,189.39,189.28,24.23]
[1722219441141,0.7768355,189.39,189.28,24.23]
[1722219441839,0.7768355,189.39,189.29,45.0]
[1722219442009,0.7768355,189.39,189.29,45.34]
[1722219442215,0.7768355,189.39,189.31,24.23]
[1722219442430,0.7768355,189.39,189.32,45.0]
[1722219442812,0.7768355,189.39,189.31,24.23]
[1722219443149,24.2246,189.37,189.27,30.3512]
[1722219443313,0.5,189.36,189.27,30.3512]
[1722219443629,20.0,189.37,189.27,30.3512]
[1722219443835,21.2768355,189.39,189.27,30.3512]
[1722219444031,20.7768355,189.39,189.27,30.3512]
[1722219444211,0.7768355,189.39,189.27,30.3512]
[1722219444407,0.7768355,189.39,189.27,31.40751588]
[1722219444626,0.7768355,189.39,189.28,45.0]
[1722219444817,0.7768355,189.39,189.31,24.23]
[1722219445028,0.7768355,189.39,189.32,46.39594393]
[1722219445335,0.7768355,189.39,189.3,24.23]
[1722219445725,0.7768355,189.39,189.31,45.0]
[1722219446836,0.7768355,189.39,189.34,15.4602]
[1722219447114,0.7768355,189.39,189.34,21.6015]
[1722219447313,0.7768355,189.39,189.35,45.0]
[1722219448422,0.7768355,189.39,189.36,1.39585761]
[1722219448617,0.7768355,189.39,189.36,25.62585761]
[1722219448824,0.7768355,189.39,189.37,45.0]
[1722219449348,0.7768355,189.39,189.38,1.39571432]
[1722219449644,0.7768355,189.39,189.38,0.34]
[1722219450331,16.337,189.51,189.39,3.7046]
[1722219450535,183.18,189.53,189.41,24.23]
[1722219450838,183.18,189.53,189.42,46.05546599]
[1722219451151,0.5,189.52,189.42,45.0]
[1722219451336,4.7212,189.52,189.42,45.0]
[1722219451760,203.18,189.53,189.42,45.0]
[1722219452442,183.18,189.53,189.42,45.0]
[1722219452643,183.18,189.53,189.45,24.23]
[1722219452864,183.18,189.53,189.46,45.0]
[1722219453149,183.18,189.53,189.46,45.17]
[1722219453526,183.18,189.53,189.47,0.17]
[1722219453727,183.18,189.53,189.46,0.17]
[1722219454757,183.18,189.53,189.47,15.3407]
[1722219454933,183.18,189.53,189.48,45.34]
[1722219455126,183.18,189.53,189.49,6.5748]
[1722219455322,183.18,189.53,189.5,45.34]
[1722219456357,183.18,189.53,189.5,0.34]
[1722219456535,183.18,189.53,189.49,6.5748]
[1722219458349,183.18,189.53,189.5,0.34]
[1722219458663,183.18,189.53,189.5,45.34]
[1722219458964,183.18,189.53,189.5,69.57]
[1722219459864,183.18,189.53,189.5,71.62068062]
[1722219460155,183.18,189.53,189.5,0.17]
[1722219460744,183.18,189.53,189.49,6.5748]
[1722219461258,183.18,189.53,189.43,29.67278619]
[1722219461259,183.18,189.53,189.45,6.1682]
[1722219462134,183.18,189.53,189.4,31.42540153]
[1722219462338,0.5,189.52,189.4,30.3701]
[1722219462839,183.18,189.53,189.4,30.3701]
[1722219462840,183.18,189.53,189.43,24.23]
[1722219463052,183.18,189.53,189.44,1.05518657]
[1722219463538,183.18,189.53,189.43,1.05518414]
[1722219464253,183.18,189.53,189.41,1.05529112]
[1722219464457,183.18,189.53,189.42,1.05548058]
[1722219464643,183.18,189.53,189.44,15.4462]
[1722219464846,183.18,189.53,189.45,1.05512636]
[1722219465243,183.18,189.53,189.46,1.05516575]
[1722219465656,183.18,189.53,189.48,6.052]
[1722219465870,183.18,189.53,189.49,45.34]
[1722219466471,183.18,189.53,189.48,6.052]
[1722219467073,183.18,189.53,189.49,45.34]
[1722219467277,183.18,189.53,189.49,46.39514427]
[1722219467475,141.83320439,189.53,189.52,15.92]
[1722219467780,9.7768355,189.58,189.52,87.13611953]
[1722219467990,9.7768355,189.58,189.54,43.05]
[1722219468275,9.7768355,189.58,189.55,0.34]
[1722219468488,9.7768355,189.58,189.53,45.34]
[1722219468666,9.7768355,189.58,189.53,0.34]
[1722219469079,9.7768355,189.58,189.53,20.34]
[1722219469259,9.7768355,189.58,189.46,6.1191]
[1722219469456,9.7768355,189.58,189.46,7.17398028]
[1722219470656,9.7768355,189.58,189.46,1.05488028]
[1722219471965,9.7768355,189.58,189.46,46.05488028]
[1722219472165,9.7768355,189.58,189.47,1.05511149]
[1722219472369,9.7768355,189.58,189.42,36.97513305]
[1722219472679,9.7768355,189.58,189.43,1.05523636]
[1722219472885,42.4508,189.57,189.42,1.05532946]
[1722219473061,46.6708,189.57,189.36,27.13]
[1722219473400,20.0,189.55,189.37,1.05537661]
[1722219473699,4.7208,189.54,189.37,1.05537661]
[1722219473992,24.221,189.53,189.37,1.05537661]
[1722219474162,0.5,189.52,189.37,1.05537661]
[1722219474491,4.224,189.39,189.26,1.05555998]
[1722219474792,20.0,189.38,189.2,1.0563513]
[1722219475085,4.2249,189.36,189.21,1.0564037]
[1722219475387,20.0,189.36,189.21,1.0564037]
[1722219475575,4.2254,189.33,189.21,1.0564037]
[1722219475776,4.2242,189.39,189.22,1.05658819]
[1722219476080,6.6483,189.41,189.22,1.05658819]
[1722219476697,6.6483,189.41,189.22,16.97658819]
[1722219476887,6.6483,189.41,189.22,36.97658819]
[1722219477086,6.6483,189.41,189.24,15.92]
[1722219477383,6.6483,189.41,189.22,21.05658819]
[1722219477384,6.6483,189.41,189.25,61.97596452]
[1722219477961,6.6483,189.41,189.25,46.05596452]
[1722219478166,6.6483,189.41,189.25,1.05596452]
[1722219478779,30.872,189.41,189.25,1.05596452]
[1722219478980,0.5,189.4,189.25,1.05596452]
[1722219479285,20.5,189.39,189.25,1.05596452]
[1722219479586,6.6483,189.41,189.26,1.05636874]
[1722219479763,6.6483,189.41,189.27,1.05618285]
[1722219480095,6.6483,189.41,189.28,1.05621289]
[1722219480586,15.3025,189.42,189.29,15.92]
[1722219480785,15.3025,189.42,189.3,82.31579763]
[1722219480963,15.3025,189.42,189.3,37.31579763]
[1722219481157,15.3025,189.42,189.31,45.0]
[1722219481372,6.51,189.46,189.32,21.3957979]
[1722219481572,6.51,189.46,189.33,46.0556376]
[1722219481766,15.4752,189.48,189.34,20.34]
[1722219481993,15.4752,189.48,189.35,46.05554841]
[1722219482182,15.4752,189.48,189.36,1.39553024]
[1722219482691,15.4752,189.48,189.36,21.39553024]
[1722219482877,15.4752,189.48,189.37,45.0]
[1722219483078,20.0,189.56,189.39,6.1271]
[1722219483397,31.17974734,189.58,189.4,109.44522666]
[1722219483861,15.30484734,189.58,189.45,15.92]
[1722219484067,15.30484734,189.58,189.47,15.92]
[1722219484299,15.30484734,189.58,189.48,1.22485402]
[1722219484506,9.7768355,189.58,189.49,1.0550277]
[1722219484993,9.7768355,189.58,189.48,0.17]
[1722219485165,9.7768355,189.58,189.41,20.0]
[1722219485166,9.7768355,189.58,189.49,1.05514769]
[1722219485371,9.7768355,189.58,189.48,0.17]
[1722219485592,9.7768355,189.58,189.42,19.09084727]
[1722219485593,9.7768355,189.58,189.43,21.05513453]
[1722219485793,13.9968355,189.58,189.44,45.0]
[1722219486091,9.7768355,189.58,189.45,1.0552022]
[1722219486290,9.7768355,189.58,189.46,1.05511113]
[1722219486902,9.7768355,189.58,189.44,46.05512943]
[1722219487081,9.7768355,189.58,189.47,1.05526848]
[1722219487591,9.7768355,189.58,189.48,0.34]
[1722219487781,9.7768355,189.58,189.49,1.05494485]
[1722219488011,9.7768355,189.58,189.5,0.34]
[1722219488420,9.7768355,189.58,189.52,43.05]
[1722219488604,9.7768355,189.58,189.53,1.39471809]
[1722219488803,9.7768355,189.58,189.53,46.39471809]
[1722219489313,9.7768355,189.58,189.54,45.0]
[1722219489611,9.7768355,189.58,189.55,1.22481214]
[1722219489810,9.7768355,189.58,189.55,1.22481242]
[1722219490013,9.7768355,189.58,189.56,0.17]
[1722219490331,9.7768355,189.58,189.47,6.2521]
[1722219490616,9.7768355,189.58,189.48,1.05486608]
[1722219490807,9.7768355,189.58,189.49,1.05483122]
[1722219491317,9.7768355,189.58,189.49,16.97483122]
[1722219491521,9.7768355,189.58,189.5,60.92]
[1722219491698,9.7768355,189.58,189.51,1.05478332]
[1722219491903,9.7768355,189.58,189.52,1.39468226]
[1722219494247,9.7768355,189.58,189.53,27.13]
[1722219494532,9.7768355,189.58,189.55,15.92]
[1722219494741,9.7768355,189.58,189.56,1.05462126]
[1722219494900,9.7768355,189.58,189.57,0.34]
[1722219495205,9.7768355,189.58,189.57,1.39469936]
[1722219495405,9.7768355,189.58,189.57,0.34]
[1722219495609,9.7768355,189.58,189.57,1.05464125]
[1722219495821,9.7768355,189.58,189.57,0.34]
[1722219496414,9.7768355,189.58,189.57,1.39470357]
[1722219496602,8.19096037,189.58,189.57,1.39470357]
[1722219496921,8.19096037,189.58,189.57,0.34]
[1722219498024,2.49252469,189.58,189.57,0.34]
[1722219498337,2.07252469,189.58,189.57,22.4661]
[1722219498531,0.48752469,189.58,189.57,67.4661]
[1722219498825,0.48752469,189.58,189.57,94.5961]
[1722219499032,0.48752469,189.58,189.57,114.5961]
[1722219499205,0.48752469,189.58,189.57,87.4661]
[1722219500110,0.48752469,189.58,189.57,67.4661]
[1722219500315,2.0,189.6,189.58,1.05436774]
[1722219500525,2.0,189.6,189.59,0.17]
[1722219500724,2.0,189.6,189.59,20.17]
[1722219501030,2.0,189.6,189.59,82.31428946]
[1722219501230,0.26361,189.68,189.59,37.3140737]
[1722219501425,0.26361,189.68,189.63,15.92]
[1722219501627,0.7768355,189.76,189.65,15.92]
[1722219501804,0.7768355,189.76,189.67,15.92]
[1722219502010,0.7768355,189.76,189.69,15.92]
[1722219502229,18.73,189.79,189.72,15.92]
[1722219502414,13.07706197,189.79,189.74,15.92]
[1722219502733,13.07706197,189.79,189.75,65.34]
[1722219503231,13.07706197,189.79,189.75,66.39358757]
[1722219503408,13.07706197,189.79,189.75,65.34]
[1722219503807,13.07706197,189.79,189.76,1.05359658]
[1722219504003,13.07706197,189.79,189.77,0.34]
[1722219504316,13.07706197,189.79,189.77,1.22351916]
[1722219504509,10.95706197,189.79,189.78,0.17]
[1722219505213,10.95706197,189.79,189.78,0.34]
[1722219506008,10.95706197,189.79,189.78,0.17]
[1722219506209,10.95706197,189.79,189.73,1.05354277]
[1722219506430,10.95706197,189.79,189.74,0.34]
[1722219506750,10.95706197,189.79,189.75,1.05362698]
[1722219506937,10.95706197,189.79,189.74,1.0536178]
[1722219507232,10.95706197,189.79,189.72,1.05367187]
[1722219508236,10.95706197,189.79,189.67,1.05370281]
[1722219508529,10.95706197,189.79,189.68,1.05375337]
[1722219509308,10.95706197,189.79,189.64,1.05376254]
[1722219509505,10.95706197,189.79,189.65,1.05383293]
[1722219510423,10.95706197,189.79,189.66,15.92]
[1722219510619,10.95706197,189.79,189.67,1.0537049]
[1722219510929,10.95706197,189.79,189.68,17.31370528]
[1722219511340,10.95706197,189.79,189.7,15.92]
[1722219511536,10.95706197,189.79,189.72,15.92]
[1722219511742,10.95706197,189.79,189.73,1.39362264]
[1722219512035,10.95706197,189.79,189.74,1.05360872]
[1722219512345,10.95706197,189.79,189.75,0.34]
[1722219512515,10.95706197,189.79,189.76,1.05348051]
[1722219512713,10.95706197,189.79,189.77,0.34]
[1722219512934,10.95706197,189.79,189.78,0.17]
[1722219513132,10.95706197,189.79,189.76,1.05357937]
[1722219513415,10.95706197,189.79,189.77,1.39357102]
[1722219513611,10.95706197,189.79,189.77,45.34]
[1722219513914,10.95706197,189.79,189.67,6.6483]
[1722219513915,10.95706197,189.79,189.71,1.05353964]
[1722219514935,10.95706197,189.79,189.72,1.05370331]
[1722219515240,10.95706197,189.79,189.66,1.05369258]
[1722219516034,6.3904,189.77,189.66,1.05369258]
[1722219516228,16.6295,189.76,189.66,1.05369258]
[1722219517418,16.6295,189.76,189.67,0.34]
[1722219517613,16.6295,189.76,189.63,15.92]
[1722219517614,16.6295,189.76,189.68,1.0537777]
[1722219518712,10.95706197,189.79,189.68,21.0537777]
[1722219518917,10.95706197,189.79,189.69,16.26]
[1722219519213,10.95706197,189.79,189.71,15.92]
[1722219519523,10.95706197,189.79,189.72,1.39361833]
[1722219519729,10.95706197,189.79,189.73,15.92]
[1722219519939,10.95706197,189.79,189.74,1.39353536]
[1722219520119,7.43809097,189.79,189.75,15.92]
[1722219520324,7.43809097,189.79,189.76,21.39344198]
[1722219520536,7.43809097,189.79,189.77,1.05343341]
[1722219521343,7.43809097,189.79,189.78,0.34]
[1722219521523,7.43809097,189.79,189.78,0.17]
[1722219521848,7.43809097,189.79,189.7,1.05357319]
[1722219522014,7.43809097,189.79,189.71,1.05367062]
[1722219522918,7.43809097,189.79,189.65,15.92]
[1722219522919,16.1822,189.78,189.72,1.05370734]
[1722219523136,16.1822,189.78,189.66,1.05381342]
[1722219523841,20.3977,189.78,189.62,1.05394237]
[1722219524032,4.2156,189.77,189.62,1.05394237]
[1722219524354,16.1822,189.78,189.62,1.05394237]
[1722219525231,16.1822,189.78,189.62,16.97394237]
[1722219525844,16.1822,189.78,189.64,15.92]
[1722219526033,16.1822,189.78,189.65,46.39384371]
[1722219526235,16.1822,189.78,189.65,1.05384371]
[1722219526545,6.063,189.74,189.62,1.05409093]
[1722219526850,6.063,189.74,189.66,1.05409093]
[1722219527037,6.063,189.74,189.58,1.05407674]
[1722219528953,15.8906,189.73,189.58,1.05407674]
[1722219529128,15.8906,189.73,189.58,16.97407674]
[1722219529457,15.8906,189.73,189.58,1.05407674]
[1722219529754,20.1071,189.73,189.58,1.05407674]
[1722219529923,15.8906,189.73,189.58,1.05407674]
[1722219530255,15.2051,189.69,189.58,1.05407674]
[1722219530464,15.2051,189.69,189.55,1.05446455]
[1722219530850,15.1107,189.66,189.55,1.05446455]
[1722219531445,15.1107,189.66,189.56,1.05460456]
[1722219531635,10.7248,189.65,189.49,7.91417372]
[1722219531836,10.7248,189.65,189.5,1.05477759]
[1722219532043,20.0,189.61,189.46,1.05481719]
[1722219532251,25.8373,189.57,189.42,1.05520573]
[1722219532449,21.6172,189.57,189.43,1.05525109]
[1722219533458,21.6172,189.57,189.41,1.05521317]
[1722219535047,4.2207,189.54,189.4,28.12519859]
[1722219535247,4.2207,189.54,189.35,9.776836]
[1722219535248,6.6366,189.51,189.36,36.05073348]
[1722219535437,6.6366,189.51,189.37,1.05556443]
[1722219535438,12.17745554,189.51,189.37,1.05556443]
[1722219535859,4.2221,189.48,189.33,1.05563741]
[1722219536174,6.5425,189.44,189.33,1.05563741]
[1722219536341,6.5425,189.44,189.3,1.05613677]
[1722219536342,15.0393,189.43,189.3,1.05613677]
[1722219536540,15.0393,189.43,189.3,1.05599204]
[1722219536936,19.2625,189.43,189.3,1.05599204]
[1722219537139,15.0393,189.43,189.29,0.7768355]
[1722219537368,15.0393,189.43,189.3,1.05614298]
[1722219539362,15.0393,189.43,189.29,1.83278977]
[1722219539363,1.31994284,189.42,189.29,1.83278977]
[1722219539561,15.0393,189.43,189.3,1.05607683]
[1722219539752,15.0393,189.43,189.3,1.05606477]
[1722219540151,20.0,189.51,189.3,1.05606477]
[1722219540152,15.2917,189.5,189.32,27.07]
[1722219540361,15.2917,189.5,189.33,21.05554119]
[1722219540550,15.2917,189.5,189.36,27.07]
[1722219540756,15.2917,189.5,189.37,21.05541147]
[1722219540951,15.2917,189.5,189.37,66.05541147]
[1722219541267,15.2917,189.5,189.38,0.34]
[1722219541587,15.2917,189.5,189.38,0.17]
[1722219541740,15.2917,189.5,189.37,1.05551773]
[1722219541939,15.2917,189.5,189.38,0.17]
[1722219542138,15.2917,189.5,189.37,1.05551773]
[1722219542362,1.31960904,189.49,189.36,0.17]
[1722219542672,15.2917,189.5,189.36,1.055743]
[1722219543266,16.61135832,189.5,189.34,1.05572666]
[1722219543477,20.0,189.49,189.34,1.05572666]
[1722219543770,16.61135832,189.5,189.34,1.05572666]
[1722219543985,20.0,189.49,189.34,1.05572666]
[1722219544165,21.31985347,189.49,189.33,1.05583769]
[1722219544357,24.2218,189.49,189.33,1.05583769]
[1722219544675,24.2218,189.49,189.29,0.7768355]
[1722219544676,6.1954,189.43,189.29,0.7768355]
[1722219544864,6.1954,189.43,189.3,1.05616856]
[1722219546371,6.1954,189.43,189.31,0.34]
[1722219546555,6.1954,189.43,189.32,1.05588537]
[1722219546876,6.1954,189.43,189.33,1.39583965]
[1722219547256,6.1954,189.43,189.31,1.05583965]
[1722219549297,6.1954,189.43,189.32,0.34]
[1722219549472,6.1954,189.43,189.33,1.05584489]
[1722219549658,6.1954,189.43,189.32,1.39584514]
[1722219549987,7.51537278,189.43,189.3,1.05597822]
[1722219550464,6.1954,189.43,189.3,1.05597822]
[1722219550672,6.1954,189.43,189.15,135.41273434]
[1722219550673,20.0,189.34,189.14,385.5]
[1722219550876,20.0,189.34,189.15,1.0567359]
[1722219550877,21.9665,189.32,189.15,1.0567359]
[1722219551173,21.9665,189.32,189.14,1.05687638]
[1722219551174,25.54699548,189.31,189.14,1.05687638]
[1722219551386,20.0,189.22,189.1,0.7768355]
[1722219551678,15.7108,189.19,189.1,0.7768355]
[1722219552350,15.7108,189.19,189.11,1.0571616]
[1722219552552,15.7108,189.19,189.1,1.8339864]
[1722219552747,15.7108,189.19,189.11,1.05721956]
[1722219552971,15.7108,189.19,189.11,28.12721956]
[1722219553275,15.7108,189.19,189.1,0.7768355]
[1722219553652,1.32162214,189.18,189.1,0.7768355]
[1722219553852,15.7108,189.19,189.1,0.7768355]
[1722219554656,68.91027239,189.18,188.99,1.05741791]
[1722219554859,68.91027239,189.18,189.0,1.05761184]
[1722219555582,22.5885,189.18,189.0,1.05761184]
[1722219556085,21.32183593,189.17,188.97,21.05746874]
[1722219556288,1.32183593,189.17,188.97,21.05746874]
[1722219556487,22.5885,189.18,188.97,21.05746874]
[1722219557388,22.5885,189.18,188.98,0.34]
[1722219557586,22.5885,189.18,188.99,1.05756215]
[1722219557792,22.5885,189.18,189.0,0.34]
[1722219557991,22.5885,189.18,189.01,1.05758712]
[1722219558171,1.32198614,189.17,189.02,1.39758891]
[1722219558375,1.32198614,189.17,189.0,0.34]
[1722219558376,66.32198614,189.17,189.03,0.34]
[1722219558570,66.32198614,189.17,189.0,1.39758891]
[1722219559676,66.32198614,189.17,188.97,1.05768419]
[1722219559872,20.0,189.15,188.97,1.05768419]
[1722219560072,1.32227577,189.14,188.97,1.05768419]